[Event "3rd Memorial Warakomska 2019"]
[Site "Suwalki"]
[Date "2019.08.08"]
[Round "5.9"]
[White "Hnydiuk, Aleksander"]
[Black "Karthik Venkataraman"]
[Result "1/2-1/2"]
[ECO "A33"]
[WhiteElo "2412"]
[BlackElo "2480"]
[Annotator "ChessBase"]
[PlyCount "145"]
[EventDate "2019.08.05"]
[EventType "swiss"]
[EventCountry "POL"]
[SourceTitle "playchess.com"]
[Source "ChessBase"]
[SourceQuality "1"]
[TimeControl "40/5400+30:1800+30"]

1. Nf3 {[%emt 0:05:37]} Nf6 {[%emt 0:00:00]} 2. c4 {[%emt 0:00:11]} c5 {[%emt 0:00:42]} 3. d4 {[%emt 0:00:14]} cxd4 {[%emt 0:00:05]} 4. Nxd4 {[%emt 0:00:03]} Nc6 {[%emt 0:00:29]} 5. Nc3 {[%emt 0:00:26]} e6 {[%emt 0:00:10]} 6. g3 {[%emt 0:00:24]} Qb6 {[%emt 0:00:07]} 7. Ndb5 {[%emt 0:00:09]} Ne5 {[%emt 0:00:24]} 8. Bg2 {[%emt 0:01:34]} a6 {[%emt 0:01:13]} 9. Qa4 {[%emt 0:01:05]} Rb8 {[%emt 0:02:52]} 10. Be3 {[%emt 0:00:52]} Bc5 {[%emt 0:02:59]} 11. Bxc5 {[%emt 0:00:14]} Qxc5 {[%emt 0:00:06]} 12. Qa3 {[%emt 0:00:18]} b6 {[%emt 0:01:28]} 13. Nd6+ {[%emt 0:00:09]} Ke7 {[%emt 0:00:25]} 14. Qxc5 {[%emt 0:00:04]} bxc5 {[%emt 0:00:03]} 15. Nxc8+ {[%emt 0:01:05]} Rhxc8 {[%emt 0:00:04]} 16. b3 {[%emt 0:00:11]} d5 {[%emt 0:00:05]} 17. cxd5 {[%emt 0:00:08]} c4 {[%emt 0:00:10]} 18. b4 {[%emt 0:00:37]} exd5 {[%emt 0:06:26]} 19. Bxd5 {[%emt 0:00:17]} Rxb4 {[%emt 0:00:07]} 20. O-O-O {[%emt 0:32:24]} Neg4 {[%emt 0:08:42]} 21. Rdf1 {[%emt 0:00:28]} Rcb8 {[%emt 0:07:55]} 22. h3 {[%emt 0:02:53]} Ne5 {[%emt 0:00:05]} 23. Rd1 {[%emt 0:01:11]} Ned7 {[%emt 0:04:48]} 24. Rd2 {[%emt 0:12:27]} Nc5 {[%emt 0:02:47]} 25. Bf3 {[%emt 0:09:14]} a5 {[%emt 0:12:07]} 26. Rhd1 {[%emt 0:01:32]} Na4 {[%emt 0:04:30]} 27. Nxa4 {[%emt 0:00:27]} Rxa4 {[%emt 0:00:04]} 28. Rb2 {[%emt 0:02:57]} Rxb2 {[%emt 0:12:12]} 29. Kxb2 {[%emt 0:00:02]} Rb4+ {[%emt 0:00:16]} 30. Kc3 {[%emt 0:03:59]} Nd7 {[%emt 0:01:21]} 31. Rd5 {[%emt 0:11:25]} Ra4 {[%emt 0:00:36]} 32. Kb2 {[%emt 0:03:46]} Nb6 {[%emt 0:00:53]} 33. Rc5 {[%emt 0:02:38]} Rb4+ {[%emt 0:03:26]} 34. Kc2 {[%emt 0:00:31]} Ra4 {[%emt 0:02:51]} 35. Kb2 {[%emt 0:02:20]} Rb4+ {[%emt 0:00:12]} 36. Kc2 {[%emt 0:00:03]} Ra4 {[%emt 0:00:07]} 37. Rc7+ {[%emt 0:00:36]} Kf8 {[%emt 0:02:55]} 38. Rb7 {[%emt 0:01:29]} Rb4 {[%emt 0:00:07]} 39. Bc6 {[%emt 0:04:30]} a4 {[%emt 0:09:44]} 40. Kc3 {[%emt 0:00:00]} Rb1 {[%emt 0:00:00]} 41. Kc2 {[%emt 0:18:17]} Rb4 {[%emt 0:00:23]} 42. Kc3 {[%emt 0:00:11]} Rb1 {[%emt 0:00:24]} 43. Kd4 {[%emt 0:05:19]} c3 {[%emt 0:04:16]} 44. Kd3 {[%emt 0:02:42]} a3 {[%emt 0:07:04]} 45. Kc2 {[%emt 0:01:47]} Rb4 {[%emt 0:00:13]} 46. Ra7 {[%emt 0:03:21]} Rb2+ {[%emt 0:10:30]} 47. Kxc3 {[%emt 0:00:02]} Rxa2 {[%emt 0:00:06]} 48. Ra6 {[%emt 0:00:19]} Rxe2 {[%emt 0:00:35]} 49. Rxb6 {[%emt 0:00:59]} Rxf2 {[%emt 0:00:04]} 50. Ra6 {[%emt 0:00:52]} Rh2 {[%emt 0:00:24]} 51. Rxa3 {[%emt 0:00:36]} Rxh3 {[%emt 0:00:05]} 52. Kd4 {[%emt 0:00:06]} g6 {[%emt 0:00:52]} 53. Bd5 {[%emt 0:02:28]} Kg7 {[%emt 0:00:39]} 54. Rf3 {[%emt 0:00:56]} f5 {[%emt 0:00:13]} 55. Ke5 {[%emt 0:00:07]} Rh2 {[%emt 0:03:39]} 56. Rc3 {[%emt 0:00:24]} Re2+ {[%emt 0:00:06]} 57. Kf4 {[%emt 0:00:04]} Re7 {[%emt 0:00:18]} 58. Rc6 {[%emt 0:00:36]} Ra7 {[%emt 0:00:08]} 59. Ke5 {[%emt 0:00:32]} Re7+ {[%emt 0:00:12]} 60. Be6 {[%emt 0:00:15]} Ra7 {[%emt 0:00:05]} 61. Rc5 {[%emt 0:00:49]} Rb7 {[%emt 0:00:32]} 62. Ra5 {[%emt 0:00:36]} Rc7 {[%emt 0:00:04]} 63. Rb5 {[%emt 0:00:11]} Ra7 {[%emt 0:00:08]} 64. Bd5 {[%emt 0:00:19]} Re7+ {[%emt 0:00:06]} 65. Kf4 {[%emt 0:00:29]} Ra7 {[%emt 0:00:05]} 66. Kg5 {[%emt 0:01:39]} Rd7 {[%emt 0:00:34]} 67. Rb7 {[%emt 0:00:24]} Rxb7 {[%emt 0:00:05]} 68. Bxb7 {[%emt 0:00:02]} h6+ {[%emt 0:00:09]} 69. Kf4 {[%emt 0:00:01]} Kf6 {[%emt 0:00:06]} 70. Bc8 {[%emt 0:00:18]} h5 {[%emt 0:00:16]} 71. Bd7 {[%emt 0:00:07]} g5+ {[%emt 0:00:04]} 72. Kf3 {[%emt 0:00:03]} h4 {[%emt 0:00:05]} 73. gxh4 {[%emt 0:00:03]} 1/2-1/2

[Event "3rd Memorial Warakomska 2019"]
[Site "Suwalki"]
[Date "2019.08.08"]
[Round "5.10"]
[White "Iturrizaga Bonelli, Eduardo"]
[Black "Tihonov, Jurij"]
[Result "1/2-1/2"]
[ECO "A30"]
[WhiteElo "2625"]
[BlackElo "2393"]
[Annotator "ChessBase"]
[PlyCount "135"]
[EventDate "2019.08.05"]
[EventType "swiss"]
[EventCountry "POL"]
[SourceTitle "playchess.com"]
[Source "ChessBase"]
[SourceQuality "1"]
[TimeControl "40/5400+30:1800+30"]

1. c4 {[%emt 0:03:44]} c5 {[%emt 0:01:15]} 2. Nf3 {[%emt 0:00:07]} g6 {[%emt 0:00:12]} 3. d4 {[%emt 0:00:21]} cxd4 {[%emt 0:00:07]} 4. Nxd4 {[%emt 0:00:04]} Nc6 {[%emt 0:00:14]} 5. e4 {[%emt 0:00:22]} Nf6 {[%emt 0:00:17]} 6. Nc3 {[%emt 0:00:09]} d6 {[%emt 0:01:04]} 7. Be2 {[%emt 0:03:21]} Nxd4 {[%emt 0:00:38]} 8. Qxd4 {[%emt 0:00:09]} Bg7 {[%emt 0:00:04]} 9. Be3 {[%emt 0:04:09]} O-O {[%emt 0:00:23]} 10. Qd2 {[%emt 0:00:05]} a5 {[%emt 0:00:28]} 11. Rc1 {[%emt 0:06:45]} a4 {[%emt 0:04:12]} 12. f3 {[%emt 0:00:05]} Qa5 {[%emt 0:05:56]} 13. Rc2 {[%emt 0:00:05]} Bd7 {[%emt 0:07:01]} 14. O-O {[%emt 0:01:09]} Rfd8 {[%emt 0:05:52]} 15. Rb1 {[%emt 0:08:41]} Be6 {[%emt 0:05:00]} 16. b4 {[%emt 0:14:08]} axb3 {[%emt 0:00:05]} 17. axb3 {[%emt 0:00:04]} Qb4 {[%emt 0:04:03]} 18. Nb5 {[%emt 0:00:53]} Qxd2 {[%emt 0:00:26]} 19. Rxd2 {[%emt 0:00:03]} Nd7 {[%emt 0:10:31]} 20. Nc7 {[%emt 0:17:29]} Rac8 {[%emt 0:01:13]} 21. Nxe6 {[%emt 0:00:08]} fxe6 {[%emt 0:00:05]} 22. b4 {[%emt 0:00:04]} b6 {[%emt 0:04:00]} 23. f4 {[%emt 0:03:42]} e5 {[%emt 0:01:07]} 24. g3 {[%emt 0:11:43]} Rb8 {[%emt 0:12:04]} 25. Rb3 {[%emt 0:05:06]} Bh6 {[%emt 0:12:24]} 26. Kg2 {[%emt 0:14:22]} Rf8 {[%emt 0:05:17]} 27. Bg4 {[%emt 0:00:21]} exf4 {[%emt 0:02:00]} 28. gxf4 {[%emt 0:00:06]} Nf6 {[%emt 0:01:29]} 29. Bf3 {[%emt 0:00:45]} Ne8 {[%emt 0:04:48]} 30. Kg3 {[%emt 0:00:18]} Ng7 {[%emt 0:00:02]} 31. Bg4 {[%emt 0:01:32]} Ra8 {[%emt 0:05:01]} 32. Rf2 {[%emt 0:02:42]} Rab8 {[%emt 0:03:19]} 33. Rd3 {[%emt 0:00:55]} Rb7 {[%emt 0:00:38]} 34. Bd4 {[%emt 0:01:55]} Rc7 {[%emt 0:02:01]} 35. Rc3 {[%emt 0:00:07]} Rb7 {[%emt 0:00:21]} 36. h4 {[%emt 0:00:34]} Kf7 {[%emt 0:02:14]} 37. f5 {[%emt 0:00:47]} Nh5+ {[%emt 0:01:21]} 38. Kh3 {[%emt 0:01:26]} Nf4+ {[%emt 0:00:59]} 39. Kg3 {[%emt 0:00:27]} Nh5+ {[%emt 0:00:28]} 40. Kh3 {[%emt 0:00:00]} Nf4+ {[%emt 0:00:00]} 41. Kh2 {[%emt 0:00:32]} e5 {[%emt 0:01:50]} 42. fxe6+ {[%emt 0:06:31]} Ke7 {[%emt 0:01:26]} 43. Rcf3 {[%emt 0:05:23]} Nxe6 {[%emt 0:02:39]} 44. Bf6+ {[%emt 0:00:33]} Rxf6 {[%emt 0:00:24]} 45. Rxf6 {[%emt 0:00:06]} Nd8 {[%emt 0:00:03]} 46. h5 {[%emt 0:03:14]} Bg7 {[%emt 0:01:09]} 47. R6f3 {[%emt 0:00:12]} Ra7 {[%emt 0:02:58]} 48. hxg6 {[%emt 0:02:39]} hxg6 {[%emt 0:00:01]} 49. Rh3 {[%emt 0:00:29]} Ke8 {[%emt 0:00:13]} 50. Kg2 {[%emt 0:03:07]} Nf7 {[%emt 0:00:59]} 51. Rb3 {[%emt 0:03:22]} Ng5 {[%emt 0:01:11]} 52. Rg3 {[%emt 0:07:16]} Kd8 {[%emt 0:07:18]} 53. Bf5 {[%emt 0:01:36]} gxf5 {[%emt 0:00:46]} 54. Rxg5 {[%emt 0:00:05]} fxe4 {[%emt 0:00:03]} 55. Re2 {[%emt 0:01:44]} Re7 {[%emt 0:00:56]} 56. Rg4 {[%emt 0:00:10]} Kd7 {[%emt 0:11:05]} 57. Rexe4 {[%emt 0:00:43]} Rxe4 {[%emt 0:00:08]} 58. Rxe4 {[%emt 0:00:04]} Kc6 {[%emt 0:00:04]} 59. Re7 {[%emt 0:01:48]} Bc3 {[%emt 0:01:06]} 60. b5+ {[%emt 0:00:38]} Kc5 {[%emt 0:00:26]} 61. Rc7+ {[%emt 0:00:03]} Kd4 {[%emt 0:01:36]} 62. Rc6 {[%emt 0:00:06]} Bb4 {[%emt 0:00:24]} 63. Rxb6 {[%emt 0:00:09]} Kxc4 {[%emt 0:00:07]} 64. Rb8 {[%emt 0:00:23]} Kc5 {[%emt 0:00:11]} 65. Kf3 {[%emt 0:01:26]} Ba5 {[%emt 0:00:49]} 66. Ke4 {[%emt 0:00:06]} d5+ {[%emt 0:01:22]} 67. Kd3 {[%emt 0:00:08]} Bb6 {[%emt 0:00:12]} 68. Rxb6 {[%emt 0:00:06]} 1/2-1/2

[Event "3rd Memorial Warakomska 2019"]
[Site "Suwalki"]
[Date "2019.08.08"]
[Round "5.11"]
[White "Stupak, Kirill"]
[Black "Grib, Roman"]
[Result "1/2-1/2"]
[ECO "D78"]
[WhiteElo "2560"]
[BlackElo "2421"]
[Annotator "ChessBase"]
[PlyCount "68"]
[EventDate "2019.08.05"]
[EventType "swiss"]
[EventCountry "POL"]
[SourceTitle "playchess.com"]
[Source "ChessBase"]
[SourceQuality "1"]
[TimeControl "40/5400+30:1800+30"]

1. Nf3 {[%emt 0:02:11]} Nf6 {[%emt 0:00:00]} 2. g3 {[%emt 0:00:10]} g6 {[%emt 0:00:00]} 3. c4 {[%emt 0:00:29]} c6 {[%emt 0:00:00]} 4. d4 {[%emt 0:00:17]} Bg7 {[%emt 0:00:08]} 5. Bg2 {[%emt 0:00:32]} d5 {[%emt 0:00:10]} 6. O-O {[%emt 0:00:08]} O-O {[%emt 0:00:06]} 7. b3 {[%emt 0:04:28]} dxc4 {[%emt 0:01:23]} 8. bxc4 {[%emt 0:00:02]} c5 {[%emt 0:00:04]} 9. Bb2 {[%emt 0:00:05]} Qb6 {[%emt 0:04:02]} 10. Qb3 {[%emt 0:00:02]} Nfd7 {[%emt 0:08:39]} 11. Nc3 {[%emt 0:03:57]} Nc6 {[%emt 0:07:39]} 12. Nd5 {[%emt 0:37:04]} Qxb3 {[%emt 0:08:58]} 13. axb3 {[%emt 0:00:05]} Rb8 {[%emt 0:04:54]} 14. e3 {[%emt 0:06:32]} b5 {[%emt 0:06:03]} 15. Ra2 {[%emt 0:10:26]} bxc4 {[%emt 0:11:26]} 16. bxc4 {[%emt 0:02:45]} e6 {[%emt 0:23:02]} 17. Nf4 {[%emt 0:00:17]} Rd8 {[%emt 0:05:20]} 18. Ba1 {[%emt 0:02:51]} cxd4 {[%emt 0:05:07]} 19. exd4 {[%emt 0:01:05]} Nb6 {[%emt 0:04:47]} 20. c5 {[%emt 0:01:16]} Nd5 {[%emt 0:02:50]} 21. Nxd5 {[%emt 0:00:46]} exd5 {[%emt 0:00:04]} 22. Ne5 {[%emt 0:00:52]} Bxe5 {[%emt 0:00:05]} 23. dxe5 {[%emt 0:00:01]} a5 {[%emt 0:00:19]} 24. Rc1 {[%emt 0:03:34]} Be6 {[%emt 0:00:29]} 25. Ra3 {[%emt 0:00:46]} Rb4 {[%emt 0:00:47]} 26. f4 {[%emt 0:01:47]} Rdb8 {[%emt 0:01:55]} 27. Kf2 {[%emt 0:00:13]} Kf8 {[%emt 0:02:22]} 28. Bf1 {[%emt 0:01:20]} Rb3 {[%emt 0:00:49]} 29. Rxb3 {[%emt 0:02:59]} Rxb3 {[%emt 0:00:04]} 30. Rc3 {[%emt 0:00:13]} Rb1 {[%emt 0:02:46]} 31. Ra3 {[%emt 0:00:06]} Rc1 {[%emt 0:00:14]} 32. Bc3 {[%emt 0:01:50]} Rc2+ {[%emt 0:00:14]} 33. Ke1 {[%emt 0:00:58]} Rc1+ {[%emt 0:00:20]} 34. Kf2 {[%emt 0:00:07]} Rc2+ {[%emt 0:00:04]} 1/2-1/2

[Event "3rd Memorial Warakomska 2019"]
[Site "Suwalki"]
[Date "2019.08.08"]
[Round "5.12"]
[White "Licznerski, Lukasz"]
[Black "Greenfeld, Alon"]
[Result "0-1"]
[ECO "B22"]
[WhiteElo "2328"]
[BlackElo "2522"]
[Annotator "ChessBase"]
[PlyCount "116"]
[EventDate "2019.08.05"]
[EventType "swiss"]
[EventCountry "POL"]
[SourceTitle "playchess.com"]
[Source "ChessBase"]
[SourceQuality "1"]
[TimeControl "40/5400+30:1800+30"]

1. e4 {[%emt 0:05:07]} c5 {[%emt 0:01:07]} 2. c3 {[%emt 0:00:16]} d5 {[%emt 0:06:11]} 3. exd5 {[%emt 0:00:15]} Qxd5 {[%emt 0:00:42]} 4. d4 {[%emt 0:00:03]} Nf6 {[%emt 0:01:11]} 5. Nf3 {[%emt 0:00:34]} e6 {[%emt 0:00:16]} 6. Na3 {[%emt 0:01:59]} Nc6 {[%emt 0:05:06]} 7. Be2 {[%emt 0:01:43]} Be7 {[%emt 0:07:40]} 8. Nb5 {[%emt 0:04:32]} Qd8 {[%emt 0:01:33]} 9. dxc5 {[%emt 0:00:43]} Bxc5 {[%emt 0:08:01]} 10. Qxd8+ {[%emt 0:01:33]} Kxd8 {[%emt 0:00:04]} 11. Bf4 {[%emt 0:15:58]} Ke7 {[%emt 0:28:32]} 12. b4 {[%emt 0:09:28]} Nd5 {[%emt 0:00:57]} 13. Bg5+ {[%emt 0:04:59]} f6 {[%emt 0:00:07]} 14. bxc5 {[%emt 0:00:04]} fxg5 {[%emt 0:00:05]} 15. Nxg5 {[%emt 0:00:33]} a6 {[%emt 0:00:41]} 16. Nd4 {[%emt 0:07:51]} Nxc3 {[%emt 0:02:10]} 17. Nxc6+ {[%emt 0:01:13]} bxc6 {[%emt 0:00:04]} 18. Bf3 {[%emt 0:06:15]} Ra7 {[%emt 0:12:51]} 19. Kd2 {[%emt 0:06:11]} Nd5 {[%emt 0:01:44]} 20. Rab1 {[%emt 0:04:28]} a5 {[%emt 0:05:34]} 21. Rhc1 {[%emt 0:18:29]} Nb4 {[%emt 0:05:57]} 22. Rc3 {[%emt 0:03:35]} Rd7+ {[%emt 0:03:48]} 23. Ke1 {[%emt 0:03:42]} Rhd8 {[%emt 0:02:17]} 24. a3 {[%emt 0:01:02]} Nd3+ {[%emt 0:01:55]} 25. Kf1 {[%emt 0:00:01]} Ba6 {[%emt 0:00:06]} 26. Kg1 {[%emt 0:00:27]} Ne5 {[%emt 0:00:49]} 27. Re1 {[%emt 0:01:55]} Nxf3+ {[%emt 0:00:26]} 28. Rxf3 {[%emt 0:00:19]} Rd1 {[%emt 0:00:24]} 29. Rfe3 {[%emt 0:00:06]} Bc4 {[%emt 0:00:34]} 30. f4 {[%emt 0:00:35]} R8d3 {[%emt 0:01:10]} 31. Rxd3 {[%emt 0:00:59]} Rxe1+ {[%emt 0:00:55]} 32. Kf2 {[%emt 0:00:00]} Ra1 {[%emt 0:00:23]} 33. Re3 {[%emt 0:01:00]} Ra2+ {[%emt 0:00:15]} 34. Kg1 {[%emt 0:00:33]} Bd5 {[%emt 0:00:14]} 35. g3 {[%emt 0:00:31]} Rg2+ {[%emt 0:01:14]} 36. Kf1 {[%emt 0:00:00]} Rxh2 {[%emt 0:00:12]} 37. f5 {[%emt 0:00:59]} Rh5 {[%emt 0:00:22]} 38. Nxe6 {[%emt 0:00:11]} Rxf5+ {[%emt 0:00:09]} 39. Nf4+ {[%emt 0:00:08]} Kf6 {[%emt 0:01:41]} 40. Kg1 {[%emt 0:00:00]} g5 {[%emt 0:00:00]} 41. Ne2 {[%emt 0:14:32]} Rf3 {[%emt 0:10:12]} 42. Rxf3+ {[%emt 0:00:28]} Bxf3 {[%emt 0:00:02]} 43. Nd4 {[%emt 0:00:01]} Bd5 {[%emt 0:00:12]} 44. Kf2 {[%emt 0:00:09]} Ke5 {[%emt 0:00:33]} 45. Ke3 {[%emt 0:00:05]} h5 {[%emt 0:00:34]} 46. Ne2 {[%emt 0:00:58]} Bc4 {[%emt 0:02:55]} 47. Nd4 {[%emt 0:00:28]} Bd5 {[%emt 0:03:34]} 48. Ne2 {[%emt 0:01:36]} Kf5 {[%emt 0:00:57]} 49. Nd4+ {[%emt 0:05:05]} Kg4 {[%emt 0:01:04]} 50. Kf2 {[%emt 0:00:10]} h4 {[%emt 0:02:32]} 51. gxh4 {[%emt 0:00:02]} gxh4 {[%emt 0:00:05]} 52. Nc2 {[%emt 0:00:35]} Kf4 {[%emt 0:01:02]} 53. Nd4 {[%emt 0:10:27]} Ke5 {[%emt 0:03:01]} 54. Ne2 {[%emt 0:01:16]} Ke4 {[%emt 0:00:40]} 55. Ng1 {[%emt 0:02:49]} Kd4 {[%emt 0:00:50]} 56. Nh3 {[%emt 0:00:30]} Kxc5 {[%emt 0:00:41]} 57. Nf4 {[%emt 0:00:31]} Kc4 {[%emt 0:00:44]} 58. Ng6 {[%emt 0:00:18]} h3 {[%emt 0:02:20]} 0-1

[Event "3rd Memorial Warakomska 2019"]
[Site "Suwalki"]
[Date "2019.08.08"]
[Round "5.13"]
[White "Gurbanov, Andrei"]
[Black "Matviishen, Viktor"]
[Result "1/2-1/2"]
[ECO "D10"]
[WhiteElo "2305"]
[BlackElo "2495"]
[Annotator "ChessBase"]
[PlyCount "72"]
[EventDate "2019.08.05"]
[EventType "swiss"]
[EventCountry "POL"]
[SourceTitle "playchess.com"]
[Source "ChessBase"]
[SourceQuality "1"]
[TimeControl "40/5400+30:1800+30"]

1. d4 {[%emt 0:07:11]} d5 {[%emt 0:00:00]} 2. c4 {[%emt 0:00:04]} c6 {[%emt 0:00:00]} 3. cxd5 {[%emt 0:00:47]} cxd5 {[%emt 0:00:00]} 4. Nc3 {[%emt 0:00:05]} Nf6 {[%emt 0:00:09]} 5. Bf4 {[%emt 0:00:08]} Nc6 {[%emt 0:00:41]} 6. e3 {[%emt 0:01:46]} a6 {[%emt 0:00:08]} 7. Bd3 {[%emt 0:00:14]} g6 {[%emt 0:01:04]} 8. h3 {[%emt 0:02:24]} Bg7 {[%emt 0:00:11]} 9. Nf3 {[%emt 0:00:11]} O-O {[%emt 0:00:12]} 10. O-O {[%emt 0:00:28]} Bf5 {[%emt 0:00:56]} 11. Bxf5 {[%emt 0:00:07]} gxf5 {[%emt 0:00:03]} 12. Rc1 {[%emt 0:00:13]} e6 {[%emt 0:00:34]} 13. Ne5 {[%emt 0:01:17]} Nxe5 {[%emt 0:08:38]} 14. Bxe5 {[%emt 0:02:39]} Nd7 {[%emt 0:00:27]} 15. Bg3 {[%emt 0:01:03]} Rc8 {[%emt 0:03:54]} 16. Qd3 {[%emt 0:03:44]} Qa5 {[%emt 0:03:27]} 17. Rc2 {[%emt 0:04:15]} Rc6 {[%emt 0:00:37]} 18. Rfc1 {[%emt 0:00:24]} Rfc8 {[%emt 0:00:05]} 19. b3 {[%emt 0:00:33]} Nf6 {[%emt 0:07:13]} 20. Na4 {[%emt 0:10:50]} Ne4 {[%emt 0:14:47]} 21. Rxc6 {[%emt 0:05:11]} Rxc6 {[%emt 0:00:04]} 22. Rxc6 {[%emt 0:00:08]} bxc6 {[%emt 0:00:04]} 23. Bh4 {[%emt 0:03:13]} f4 {[%emt 0:03:26]} 24. f3 {[%emt 0:03:58]} Bf6 {[%emt 0:31:05]} 25. fxe4 {[%emt 0:10:47]} Bxh4 {[%emt 0:00:04]} 26. Qe2 {[%emt 0:00:40]} dxe4 {[%emt 0:00:06]} 27. Nc5 {[%emt 0:01:01]} f5 {[%emt 0:00:42]} 28. Nxe6 {[%emt 0:04:39]} fxe3 {[%emt 0:06:51]} 29. Qxe3 {[%emt 0:03:58]} Qxa2 {[%emt 0:00:30]} 30. Nc5 {[%emt 0:12:47]} Qa5 {[%emt 0:12:18]} 31. Qf4 {[%emt 0:08:48]} Qa1+ {[%emt 0:02:11]} 32. Kh2 {[%emt 0:00:01]} Qxd4 {[%emt 0:00:10]} 33. Qxf5 {[%emt 0:00:25]} Qd6+ {[%emt 0:00:41]} 34. Kh1 {[%emt 0:00:11]} Qd1+ {[%emt 0:00:04]} 35. Kh2 {[%emt 0:00:05]} Qd6+ {[%emt 0:00:25]} 36. Kh1 {[%emt 0:00:02]} Qd1+ {[%emt 0:01:48]} 1/2-1/2

[Event "3rd Memorial Warakomska 2019"]
[Site "Suwalki"]
[Date "2019.08.08"]
[Round "5.14"]
[White "Janik, Igor"]
[Black "Pniaczek, Marek"]
[Result "1-0"]
[ECO "D77"]
[WhiteElo "2495"]
[BlackElo "2276"]
[Annotator "ChessBase"]
[PlyCount "94"]
[EventDate "2019.08.05"]
[EventType "swiss"]
[EventCountry "POL"]
[SourceTitle "playchess.com"]
[Source "ChessBase"]
[SourceQuality "1"]
[TimeControl "40/5400+30:1800+30"]

1. d4 {[%emt 0:00:00]} Nf6 {[%emt 0:00:00]} 2. c4 {[%emt 0:00:00]} g6 {[%emt 0:00:00]} 3. Nf3 {[%emt 0:00:10]} Bg7 {[%emt 0:00:00]} 4. g3 {[%emt 0:00:07]} d5 {[%emt 0:00:02]} 5. Bg2 {[%emt 0:00:13]} O-O {[%emt 0:00:10]} 6. O-O {[%emt 0:00:17]} Nc6 {[%emt 0:00:11]} 7. cxd5 {[%emt 0:00:27]} Nxd5 {[%emt 0:00:07]} 8. Nc3 {[%emt 0:00:17]} e5 {[%emt 0:00:04]} 9. Bg5 {[%emt 0:00:20]} Nxc3 {[%emt 0:00:05]} 10. bxc3 {[%emt 0:00:21]} f6 {[%emt 0:00:14]} 11. Be3 {[%emt 0:01:31]} e4 {[%emt 0:00:40]} 12. Nd2 {[%emt 0:00:50]} f5 {[%emt 0:00:17]} 13. f3 {[%emt 0:01:14]} exf3 {[%emt 0:01:12]} 14. Bxf3 {[%emt 0:01:14]} Na5 {[%emt 0:03:18]} 15. Rc1 {[%emt 0:06:21]} Re8 {[%emt 0:13:34]} 16. Bf2 {[%emt 0:00:35]} Be6 {[%emt 0:01:10]} 17. Qa4 {[%emt 0:01:15]} c6 {[%emt 0:00:48]} 18. Rfe1 {[%emt 0:13:15]} Bh6 {[%emt 0:15:05]} 19. e3 {[%emt 0:01:17]} b5 {[%emt 0:03:14]} 20. Qb4 {[%emt 0:07:00]} Bf8 {[%emt 0:01:31]} 21. Qb1 {[%emt 0:00:53]} Bd5 {[%emt 0:00:51]} 22. e4 {[%emt 0:01:20]} fxe4 {[%emt 0:00:21]} 23. Nxe4 {[%emt 0:00:13]} Nc4 {[%emt 0:02:23]} 24. Re2 {[%emt 0:02:26]} Bh6 {[%emt 0:16:09]} 25. Rce1 {[%emt 0:02:58]} Rf8 {[%emt 0:24:33]} 26. Bg2 {[%emt 0:02:58]} Kh8 {[%emt 0:01:23]} 27. Qc2 {[%emt 0:13:45]} Na3 {[%emt 0:01:00]} 28. Qd1 {[%emt 0:00:18]} Nc4 {[%emt 0:00:08]} 29. Qd3 {[%emt 0:01:19]} Qd7 {[%emt 0:00:42]} 30. Nc5 {[%emt 0:01:32]} Qf7 {[%emt 0:00:19]} 31. Bxd5 {[%emt 0:06:15]} Qxd5 {[%emt 0:00:06]} 32. g4 {[%emt 0:01:12]} Bf4 {[%emt 0:06:50]} 33. Bg3 {[%emt 0:05:38]} Bxg3 {[%emt 0:02:16]} 34. Qxg3 {[%emt 0:00:04]} Qf3 {[%emt 0:01:31]} 35. Qh4 {[%emt 0:03:38]} g5 {[%emt 0:01:20]} 36. Qh5 {[%emt 0:01:18]} Rae8 {[%emt 0:01:02]} 37. Qxe8 {[%emt 0:01:49]} Rxe8 {[%emt 0:00:17]} 38. Rxe8+ {[%emt 0:00:14]} Kg7 {[%emt 0:00:02]} 39. R8e7+ {[%emt 0:01:29]} Kg8 {[%emt 0:01:04]} 40. Re8+ {[%emt 0:00:00]} Kg7 {[%emt 0:00:00]} 41. Ne6+ {[%emt 0:14:36]} Kh6 {[%emt 0:01:47]} 42. Rf8 {[%emt 0:00:03]} Qxg4+ {[%emt 0:01:16]} 43. Kh1 {[%emt 0:00:03]} Kg6 {[%emt 0:06:06]} 44. Nxg5 {[%emt 0:00:53]} Qd7 {[%emt 0:03:29]} 45. Rg1 {[%emt 0:01:57]} Qd5+ {[%emt 0:01:58]} 46. Ne4+ {[%emt 0:00:31]} Kh6 {[%emt 0:00:07]} 47. Rf6+ {[%emt 0:00:09]} Kh5 {[%emt 0:00:01]} 1-0

[Event "3rd Memorial Warakomska 2019"]
[Site "Suwalki"]
[Date "2019.08.08"]
[Round "5.15"]
[White "Szpar, Milosz"]
[Black "Barski, Radoslaw"]
[Result "1-0"]
[ECO "C78"]
[WhiteElo "2289"]
[BlackElo "2468"]
[Annotator "ChessBase"]
[PlyCount "79"]
[EventDate "2019.08.05"]
[EventType "swiss"]
[EventCountry "POL"]
[SourceTitle "playchess.com"]
[Source "ChessBase"]
[SourceQuality "1"]
[TimeControl "40/5400+30:1800+30"]

1. e4 {[%emt 0:00:00]} e5 {[%emt 0:00:00]} 2. Nf3 {[%emt 0:00:00]} Nc6 {[%emt 0:00:00]} 3. Bb5 {[%emt 0:00:00]} a6 {[%emt 0:00:00]} 4. Ba4 {[%emt 0:00:06]} Nf6 {[%emt 0:00:04]} 5. O-O {[%emt 0:00:11]} b5 {[%emt 0:00:08]} 6. Bb3 {[%emt 0:00:06]} Bb7 {[%emt 0:00:05]} 7. Re1 {[%emt 0:04:57]} Bc5 {[%emt 0:01:47]} 8. c3 {[%emt 0:01:17]} d6 {[%emt 0:00:07]} 9. d4 {[%emt 0:00:33]} Bb6 {[%emt 0:00:09]} 10. a4 {[%emt 0:02:43]} O-O {[%emt 0:01:22]} 11. h3 {[%emt 0:07:20]} h6 {[%emt 0:00:30]} 12. d5 {[%emt 0:04:51]} Ne7 {[%emt 0:01:28]} 13. Be3 {[%emt 0:05:48]} Bxe3 {[%emt 0:05:54]} 14. Rxe3 {[%emt 0:00:07]} c6 {[%emt 0:01:14]} 15. dxc6 {[%emt 0:01:43]} Bxc6 {[%emt 0:00:07]} 16. Nbd2 {[%emt 0:00:38]} Qc7 {[%emt 0:01:31]} 17. Bc2 {[%emt 0:09:23]} Rfe8 {[%emt 0:03:03]} 18. Qe1 {[%emt 0:21:10]} Rab8 {[%emt 0:04:58]} 19. axb5 {[%emt 0:03:08]} axb5 {[%emt 0:00:06]} 20. Nf1 {[%emt 0:03:11]} d5 {[%emt 0:09:23]} 21. Ng3 {[%emt 0:05:06]} dxe4 {[%emt 0:02:48]} 22. Nxe4 {[%emt 0:00:41]} Nfd5 {[%emt 0:00:17]} 23. Re2 {[%emt 0:02:01]} Nf4 {[%emt 0:02:33]} 24. Rd2 {[%emt 0:01:19]} f5 {[%emt 0:04:10]} 25. Nd6 {[%emt 0:03:36]} Bxf3 {[%emt 0:28:27]} 26. Nxe8 {[%emt 0:09:03]} Rxe8 {[%emt 0:00:06]} 27. gxf3 {[%emt 0:01:03]} Nxh3+ {[%emt 0:04:01]} 28. Kf1 {[%emt 0:03:01]} Qc4+ {[%emt 0:03:26]} 29. Bd3 {[%emt 0:01:57]} Qh4 {[%emt 0:00:09]} 30. Ke2 {[%emt 0:00:49]} e4 {[%emt 0:05:39]} 31. Bxb5 {[%emt 0:01:38]} Qh5 {[%emt 0:01:23]} 32. Kd1 {[%emt 0:01:13]} Rf8 {[%emt 0:04:39]} 33. Ra7 {[%emt 0:01:36]} Nc8 {[%emt 0:01:59]} 34. Rb7 {[%emt 0:02:43]} Qxf3+ {[%emt 0:05:04]} 35. Be2 {[%emt 0:00:41]} Nxf2+ {[%emt 0:02:58]} 36. Qxf2 {[%emt 0:00:26]} Qxf2 {[%emt 0:00:28]} 37. Bc4+ {[%emt 0:00:05]} Kh8 {[%emt 0:00:01]} 38. Rxf2 {[%emt 0:00:06]} Nd6 {[%emt 0:00:01]} 39. Rb4 {[%emt 0:02:39]} f4 {[%emt 0:00:06]} 40. Bd5 {[%emt 0:00:00]} 1-0